bitfinex/quotes_BTCUSD_20210402
["timestamp","ask_amount","ask_price","bid_price","bid_amount"]
[1617326582730,0.5464868,58749.0,58748.0,3.32743524]
[1617326583131,0.5464868,58749.0,58748.0,3.37743524]
[1617326583331,0.5464868,58749.0,58748.0,1.58743524]
[1617326583529,0.5464868,58749.0,58748.0,1.08743524]
[1617326583733,0.5464868,58749.0,58748.0,0.04259024]
[1617326584330,0.5464868,58749.0,58748.0,0.00259024]
[1617326584534,0.5464868,58749.0,58748.0,1.48259024]
[1617326584754,0.5464868,58749.0,58748.0,1.87217724]
[1617326584956,0.5464868,58749.0,58748.0,2.09217724]
[1617326585159,0.5464868,58749.0,58748.0,0.61217724]
[1617326585556,0.5464868,58749.0,58748.0,0.25783924]
[1617326586755,0.5464868,58749.0,58748.0,1.32742624]
[1617326586957,0.5464868,58749.0,58748.0,1.36742624]
[1617326587155,0.5464868,58749.0,58748.0,1.63742624]
[1617326587777,0.5464868,58749.0,58748.0,2.13054624]
[1617326587975,0.5464868,58749.0,58748.0,2.20498624]
[1617326588373,0.5464868,58749.0,58748.0,1.76498624]
[1617326589180,0.5464868,58749.0,58748.0,1.63742624]
[1617326590901,0.5464868,58749.0,58748.0,1.99504624]
[1617326591302,0.5464868,58749.0,58748.0,1.31504624]
[1617326591503,0.5464868,58749.0,58748.0,1.27504624]
[1617326591703,0.5464868,58749.0,58748.0,1.01979724]
[1617326591902,0.5464868,58749.0,58748.0,0.66217724]
[1617326592303,0.5464868,58749.0,58748.0,0.27259024]
[1617326592505,0.5464868,58749.0,58748.0,0.00259024]
[1617326594154,0.5464868,58749.0,58748.0,0.79259024]
[1617326594353,0.5464868,58749.0,58748.0,1.18217724]
[1617326594565,0.5464868,58749.0,58748.0,2.03717724]
[1617326595760,0.5464868,58749.0,58748.0,1.46717724]
[1617326598577,0.5464868,58749.0,58748.0,2.15717724]
[1617326598778,0.5464868,58749.0,58748.0,1.46717724]
[1617326599177,0.5464868,58749.0,58748.0,1.48700968]
[1617326599378,0.5464868,58749.0,58748.0,1.46717724]
[1617326600809,0.5464868,58749.0,58748.0,0.71717724]
[1617326601211,0.5464868,58749.0,58748.0,0.67717724]
[1617326601611,0.5464868,58749.0,58748.0,0.28759024]
[1617326601810,0.5464868,58749.0,58748.0,0.00259024]
[1617326604830,0.5464868,58749.0,58748.0,0.00457294]
[1617326605031,0.5464868,58749.0,58748.0,0.00259024]
[1617326606057,0.5464868,58749.0,58748.0,1.48241066]
[1617326606256,0.5464868,58749.0,58748.0,2.29981766]
[1617326606454,0.5464868,58749.0,58748.0,2.67981766]
[1617326606655,0.5464868,58749.0,58748.0,2.74035869]
[1617326607655,0.5464868,58749.0,58748.0,2.79035869]
[1617326608484,2.6264868,58749.0,58748.0,0.06054127]
[1617326608687,3.1350168,58749.0,58748.0,2.4e-07]
[1617326609117,2.9950168,58749.0,58748.0,0.03970365]
[1617326609315,2.9950168,58749.0,58748.0,2.4e-07]
[1617326609513,3.0350168,58749.0,58748.0,2.4e-07]
[1617326609722,2.9950168,58749.0,58748.0,2.4e-07]
[1617326609915,3.0950168,58749.0,58748.0,2.4e-07]
[1617326610914,3.1350168,58749.0,58748.0,2.4e-07]
[1617326611726,3.1350168,58749.0,58748.0,0.01987345]
[1617326611928,3.2950168,58749.0,58748.0,2.4e-07]
[1617326617563,3.1950168,58749.0,58748.0,2.4e-07]
[1617326618165,3.2950168,58749.0,58748.0,2.4e-07]
[1617326618767,3.1950168,58749.0,58748.0,2.4e-07]
[1617326618977,3.2950168,58749.0,58748.0,2.4e-07]
[1617326619184,3.1950168,58749.0,58748.0,2.4e-07]
[1617326619379,3.0350168,58749.0,58748.0,2.4e-07]
[1617326620578,3.1350168,58749.0,58748.0,2.4e-07]
[1617326622211,3.0350168,58749.0,58748.0,2.4e-07]
[1617326623014,3.1350168,58749.0,58748.0,2.4e-07]
[1617326623212,3.0350168,58749.0,58748.0,2.4e-07]
[1617326624043,3.1350168,58749.0,58748.0,2.4e-07]
[1617326625850,3.1350168,58749.0,58748.0,1.021e-05]
[1617326626050,3.0350168,58749.0,58748.0,1.021e-05]
[1617326627089,3.1350168,58749.0,58748.0,1.021e-05]
[1617326627485,3.0350168,58749.0,58748.0,1.021e-05]
[1617326627888,3.2900168,58749.0,58748.0,1.021e-05]
[1617326628489,3.0350168,58749.0,58748.0,1.021e-05]
[1617326628889,3.1350168,58749.0,58748.0,1.021e-05]
[1617326629490,3.0350168,58749.0,58748.0,1.021e-05]
[1617326629895,3.2880168,58749.0,58748.0,1.021e-05]
[1617326631093,0.00303724,58748.0,58736.0,0.00198546]
[1617326631296,0.25537,58742.0,58736.0,0.00198546]
[1617326631495,0.04,58740.0,58736.0,0.00198546]
[1617326631894,0.1,58739.0,58735.0,0.00598477]
[1617326632119,0.14,58739.0,58735.0,0.00198477]
[1617326632323,0.04,58739.0,58735.0,0.00198477]
[1617326632719,0.29537,58739.0,58735.0,0.00198477]
[1617326633121,0.25537,58739.0,58735.0,0.00198477]
[1617326633320,0.28616908,58741.0,58735.0,0.00198477]
[1617326633522,0.04,58740.0,58736.0,0.00198485]
[1617326634119,0.04,58739.0,58736.0,0.00198485]
[1617326635339,0.1,58738.0,58736.0,0.00198485]
[1617326635539,0.1,58738.0,58735.0,0.00198424]
[1617326635942,0.1,58738.0,58737.0,0.03978423]
[1617326636143,1.55,58738.0,58736.0,0.03978142]
[1617326637143,2.04,58737.0,58736.0,0.03978142]
[1617326637360,2.14,58737.0,58736.0,0.03978142]
[1617326637560,2.04,58737.0,58736.0,0.03978142]
[1617326638556,2.395374,58737.0,58736.0,0.03978142]
[1617326638758,2.800514,58737.0,58733.0,0.03976324]
[1617326638959,2.800514,58737.0,58732.0,0.03976485]
[1617326638960,2.0,58734.0,58732.0,0.03976485]
[1617326639252,0.102,58733.0,58731.0,0.0397737]
[1617326639448,0.102,58733.0,58725.0,0.12029508]
[1617326639449,0.38816908,58733.0,58730.0,0.03978111]
[1617326639650,0.38616908,58733.0,58732.0,0.06064809]
[1617326640123,0.38616908,58733.0,58729.0,0.03979388]
[1617326640124,0.64158208,58733.0,58729.0,0.03979388]
[1617326640321,0.64158208,58733.0,58714.0,0.255413]
[1617326640322,2.04,58732.0,58731.0,0.01991075]
[1617326640524,2.196,58732.0,58729.0,0.01991683]
[1617326640724,2.196,58732.0,58727.0,0.01992874]
[1617326640725,0.166,58730.0,58727.0,0.01992874]
[1617326640920,0.266,58730.0,58727.0,0.01992874]
[1617326641125,2.154,58728.0,58727.0,0.01992874]
[1617326641324,2.154,58728.0,58726.0,0.01993572]
[1617326641519,2.28816908,58727.0,58726.0,0.01993572]
[1617326641721,2.28816908,58727.0,58725.0,0.01994466]
[1617326641919,2.32616908,58727.0,58724.0,0.01994439]
[1617326642117,0.255,58726.0,58724.0,0.01994439]
[1617326642319,0.158,58725.0,58724.0,0.01994439]
[1617326642519,2.52952,58725.0,58720.0,0.06085852]
[1617326642723,0.162,58721.0,58719.0,0.03991189]
[1617326642920,2.42616908,58720.0,58718.0,0.03991982]
[1617326644122,2.04,58720.0,58718.0,0.03991982]
[1617326644322,2.295474,58720.0,58718.0,0.03991982]
[1617326644522,2.255474,58720.0,58718.0,0.03991982]
[1617326644721,0.255474,58720.0,58718.0,0.03991982]
[1617326644924,0.468369,58724.0,58719.0,0.03993258]
[1617326645148,0.127737,58724.0,58719.0,0.06087134]
[1617326645351,1.269,58721.0,58720.0,0.03992427]
[1617326645547,1.11,58721.0,58719.0,0.03992809]
[1617326645747,1.54,58720.0,58719.0,0.03992809]
[1617326645947,1.54,58720.0,58719.0,0.10080829]
[1617326646147,1.54,58720.0,58719.0,0.03992809]
[1617326646546,1.796,58720.0,58719.0,0.03992809]
[1617326646747,1.696,58720.0,58719.0,0.03992809]
[1617326646947,1.99,58720.0,58719.0,0.03992809]
[1617326647147,1.5,58720.0,58718.0,0.03993939]
[1617326647351,1.5,58720.0,58719.0,0.06088945]
[1617326647547,1.5,58720.0,58718.0,0.03993939]
[1617326648163,1.1,58719.0,58714.0,0.06088846]
[1617326648365,1.1,58719.0,58712.0,0.05991216]
[1617326648563,1.1,58719.0,58711.0,0.09492116]
[1617326648764,0.28514018,58718.0,58713.0,0.0603701]
[1617326648961,1.1,58719.0,58712.0,0.06036478]
[1617326649163,1.102,58719.0,58712.0,0.05536478]
[1617326649363,1.38714018,58719.0,58713.0,0.06029965]
[1617326649563,1.38714018,58719.0,58711.0,0.09492116]
[1617326649564,1.38714018,58719.0,58712.0,0.06030648]
[1617326649768,0.04,58716.0,58714.0,0.06030845]
[1617326649962,0.04,58716.0,58712.0,0.06031224]
[1617326650396,0.32514018,58716.0,58712.0,0.06031224]
[1617326650601,0.163,58714.0,58712.0,0.06031224]
[1617326650802,2.215485,58713.0,58712.0,0.06031224]
[1617326650999,2.686835,58713.0,58712.0,0.06031224]
[1617326653028,2.846835,58713.0,58712.0,0.06031224]
[1617326653826,2.686835,58713.0,58712.0,0.06031224]
[1617326654273,0.726835,58713.0,58712.0,0.06031224]
[1617326654474,0.295485,58713.0,58712.0,0.06031224]
[1617326654676,0.255485,58713.0,58712.0,0.06031224]
[1617326654877,0.255485,58713.0,58711.0,0.035]
[1617326655688,0.127743,58716.0,58711.0,0.035]
[1617326656677,0.383214,58716.0,58711.0,0.03794362]
[1617326656877,0.57520538,58712.0,58711.0,0.03794362]
[1617326657675,0.03520538,58712.0,58711.0,0.03794362]
[1617326658080,0.03520538,58712.0,58711.0,0.17288088]
[1617326658479,0.03520538,58712.0,58711.0,1.16304213]
[1617326658676,0.03520538,58712.0,58711.0,0.03294362]
[1617326659475,0.03520538,58712.0,58711.0,0.02794362]
[1617326660904,0.59520538,58712.0,58711.0,0.02794362]
[1617326661109,0.03520538,58712.0,58711.0,0.02794362]
[1617326661902,0.66520538,58712.0,58711.0,0.02794362]
[1617326662305,0.03520538,58712.0,58711.0,0.03053551]
[1617326668877,0.64520538,58712.0,58711.0,0.03053551]
[1617326669312,0.03520538,58712.0,58711.0,0.15085473]
[1617326670711,1.12520538,58712.0,58711.0,0.15085473]
[1617326671313,1.12520538,58712.0,58711.0,0.09094413]
[1617326671523,0.03520538,58712.0,58711.0,0.23088139]
[1617326671719,0.03520538,58712.0,58711.0,0.09094413]
[1617326672723,0.03520538,58712.0,58711.0,0.23088139]
[1617326673327,0.03520538,58712.0,58711.0,0.28088139]
[1617326673524,0.03520538,58712.0,58711.0,1.0606523]
[1617326673725,0.03520538,58712.0,58711.0,1.70571504]
[1617326673923,0.03520538,58712.0,58711.0,1.75571504]
[1617326674132,0.03520538,58712.0,58711.0,1.80970893]
[1617326674931,0.03520538,58712.0,58711.0,1.17970893]
[1617326675330,0.03520538,58712.0,58711.0,1.06572113]
[1617326676132,0.03520538,58712.0,58711.0,0.62613413]
[1617326676332,0.03520538,58712.0,58711.0,0.68611544]
[1617326676531,0.03520538,58712.0,58711.0,0.62613413]
[1617326677357,0.03520538,58712.0,58711.0,1.15565839]
[1617326677557,0.03520538,58712.0,58711.0,1.01572113]
[1617326677758,0.03520538,58712.0,58711.0,0.62613413]
[1617326678760,0.03520538,58712.0,58711.0,0.82606124]
[1617326679163,0.03520538,58712.0,58711.0,1.21564824]
[1617326680584,0.03520538,58712.0,58711.0,1.07571098]
[1617326680780,0.03520538,58712.0,58711.0,0.68612398]
[1617326681179,0.03520538,58712.0,58711.0,0.62613413]
[1617326681782,0.03681502,58712.0,58711.0,0.62113413]
[1617326682202,0.03681502,58712.0,58711.0,0.68110301]
[1617326683604,0.03681502,58712.0,58711.0,0.73110301]
[1617326684662,0.03681502,58712.0,58711.0,0.67113413]
[1617326684859,0.43681502,58712.0,58711.0,0.67113413]
[1617326686062,0.43681502,58712.0,58711.0,0.62113413]
[1617326686266,0.43681502,58712.0,58711.0,0.68112713]
[1617326686864,0.43681502,58712.0,58711.0,0.81606439]
[1617326687064,0.43681502,58712.0,58711.0,0.72612713]
[1617326687477,0.40160964,58712.0,58711.0,1.29598839]
[1617326687877,0.40160964,58712.0,58711.0,1.15605113]
[1617326688275,0.40160964,58712.0,58711.0,1.29598839]
[1617326688878,0.40160964,58712.0,58711.0,1.15605113]
[1617326689078,0.40160964,58712.0,58711.0,1.19565839]
[1617326690080,0.40160964,58712.0,58711.0,1.05572113]
[1617326690882,0.40160964,58712.0,58711.0,2.04588238]
[1617326691087,0.40160964,58712.0,58711.0,2.43213238]
[1617326691287,0.40160964,58712.0,58711.0,2.58506283]
[1617326691484,0.40160964,58712.0,58711.0,4.45506283]
[1617326692087,0.40160964,58712.0,58711.0,4.65728204]
[1617326693709,0.40160964,58712.0,58711.0,4.68728204]
[1617326693908,0.40160964,58712.0,58711.0,4.65728204]
[1617326694111,0.40160964,58712.0,58711.0,2.78728204]
[1617326694509,0.40160964,58712.0,58711.0,3.69728204]
[1617326694714,0.40160964,58712.0,58711.0,3.65435629]
[1617326695732,0.40160964,58712.0,58711.0,3.69710879]
[1617326696329,0.40160964,58712.0,58711.0,2.57069754]
[1617326696535,0.40160964,58712.0,58711.0,2.79865158]
[1617326697963,0.40160964,58712.0,58711.0,3.35881283]
[1617326698364,0.40160964,58712.0,58711.0,2.36865158]
[1617326701206,0.40160964,58712.0,58711.0,2.42828338]
[1617326701406,0.39660964,58712.0,58711.0,2.99828338]
[1617326701808,0.39660964,58712.0,58711.0,2.36865158]
[1617326702408,0.39660964,58712.0,58711.0,3.91881283]
[1617326702612,0.39660964,58712.0,58711.0,3.9784457]
[1617326702810,0.39660964,58712.0,58711.0,3.91881283]
[1617326703012,0.39660964,58712.0,58711.0,4.55881283]
[1617326703411,0.39660964,58712.0,58711.0,4.85881283]
[1617326706632,0.39660964,58712.0,58711.0,5.35881283]
[1617326708039,0.39660964,58712.0,58711.0,5.36157956]
[1617326709660,0.39660964,58712.0,58711.0,5.50151682]
[1617326710259,0.39660964,58712.0,58711.0,5.53151682]
[1617326710461,0.39660964,58712.0,58711.0,4.54135557]
[1617326711678,0.39660964,58712.0,58711.0,5.53151682]
[1617326713081,0.39660964,58712.0,58711.0,4.54135557]
[1617326713283,0.39660964,58712.0,58711.0,5.95151682]
[1617326713905,9.64e-06,58712.0,58711.0,6.45164114]
[1617326714346,0.9324,58743.0,58713.0,0.5]
[1617326714548,1.15469834,58760.0,58713.0,0.5]
[1617326714549,0.002,58746.0,58745.0,0.03]
[1617326714753,0.9304,58759.0,58745.0,0.51942]
[1617326714947,0.9304,58759.0,58746.0,0.529587]
[1617326715349,0.9304,58759.0,58748.0,0.389587]
[1617326716354,0.9304,58759.0,58748.0,0.684587]
[1617326718153,0.9304,58759.0,58748.0,1.384587]
[1617326718353,0.9304,58759.0,58748.0,1.424587]
[1617326718554,0.9304,58759.0,58748.0,0.724587]
[1617326718768,0.9304,58759.0,58748.0,0.684587]
[1617326719364,0.9304,58759.0,58748.0,0.774587]
[1617326720367,0.12458484,58758.0,58748.0,0.734587]
[1617326720569,0.12458484,58758.0,58748.0,0.295]
[1617326720570,0.12397015,58758.0,58748.0,0.295]
[1617326720766,0.12397015,58758.0,58745.0,0.03]
[1617326720969,0.9304,58759.0,58745.0,0.07]
[1617326721169,0.9304,58759.0,58745.0,0.03]
[1617326721584,0.9304,58759.0,58747.0,0.255279]
[1617326721784,0.1240795,58758.0,58747.0,0.255279]
[1617326721983,0.1240795,58758.0,58745.0,0.03]
[1617326722187,0.00303724,58757.0,58745.0,0.03]
[1617326723789,0.9304,58759.0,58748.0,0.04]
[1617326724016,0.9304,58759.0,58745.0,0.07]
[1617326724207,0.9304,58759.0,58746.0,0.04]
[1617326724607,0.9304,58759.0,58745.0,0.03]
[1617326724808,0.9704,58759.0,58745.0,0.03]
[1617326725012,0.12410886,58758.0,58745.0,0.03]
[1617326725210,0.00303724,58758.0,58747.0,0.04]
[1617326725409,0.9304,58759.0,58748.0,0.04]
[1617326725808,0.04,58758.0,58746.0,0.255282]
[1617326726010,0.25,58750.0,58746.0,0.255282]
[1617326726410,0.2,58750.0,58746.0,0.255282]
[1617326727441,0.2,58750.0,58746.0,0.295282]
[1617326727641,0.2,58750.0,58747.0,0.04]
[1617326727840,0.2,58750.0,58748.0,0.04]
[1617326729481,0.2,58750.0,58748.0,0.0028177]
[1617326729680,0.2,58750.0,58748.0,0.0428177]
[1617326729880,0.2,58750.0,58748.0,0.0028177]
[1617326732094,0.2,58750.0,58748.0,0.14275496]
[1617326732299,0.2,58750.0,58748.0,0.18275496]
[1617326732495,0.2,58750.0,58748.0,0.33968611]
[1617326732693,0.2,58750.0,58748.0,0.24974885]
[1617326733093,0.2,58750.0,58748.0,0.62974885]
[1617326733294,0.2,58750.0,58748.0,0.24974885]
[1617326735918,0.2,58750.0,58748.0,0.63933585]
[1617326736116,0.2,58750.0,58748.0,0.78933585]
[1617326736925,0.2,58750.0,58748.0,0.1528177]
[1617326737147,0.2,58750.0,58748.0,0.5824047]
[1617326738545,0.2,58750.0,58748.0,0.5924047]
[1617326739146,0.2,58750.0,58748.0,0.4824047]
[1617326739348,0.2,58750.0,58748.0,0.4424047]
[1617326739769,0.2,58750.0,58748.0,0.4824047]
[1617326739966,0.2,58750.0,58748.0,0.9524047]
[1617326740169,0.2,58750.0,58748.0,0.4824047]
[1617326740365,0.2,58750.0,58748.0,0.6259416]
[1617326740567,0.2,58750.0,58748.0,0.8359416]
[1617326741171,0.2,58750.0,58748.0,0.9662686]
[1617326744193,0.2,58750.0,58748.0,1.2362686]
[1617326746231,0.2,58750.0,58748.0,1.7362686]
[1617326746637,0.2,58750.0,58748.0,1.85199992]
[1617326748069,0.54669442,58749.0,58748.0,1.85199992]
[1617326748271,0.54669442,58749.0,58748.0,1.58199992]
[1617326750893,0.54669442,58749.0,58748.0,1.4662686]
[1617326751092,0.54169442,58749.0,58748.0,1.8512686]
[1617326752692,0.53669442,58749.0,58748.0,1.3512686]
[1617326753095,0.53669442,58749.0,58748.0,1.3112686]
[1617326753297,0.53669442,58749.0,58748.0,0.9262686]
[1617326753698,0.53669442,58749.0,58748.0,0.9662686]
[1617326754299,0.53669442,58749.0,58748.0,1.10620586]
[1617326754499,0.53669442,58749.0,58748.0,0.9662686]
[1617326754701,0.53669442,58749.0,58748.0,1.1362686]
[1617326755105,0.53669442,58749.0,58748.0,0.9427317]
[1617326755304,0.72733491,58749.0,58748.0,0.0028177]
[1617326755529,1.16662491,58749.0,58748.0,0.02254587]
[1617326755725,2.04662491,58749.0,58748.0,0.01973587]
[1617326755925,1.16662491,58749.0,58748.0,0.01973587]
[1617326756125,1.16662491,58749.0,58748.0,7.7e-06]
[1617326756323,1.01598442,58749.0,58748.0,7.7e-06]
[1617326756725,0.97598442,58749.0,58748.0,7.7e-06]
[1617326757128,1.01598442,58749.0,58748.0,7.7e-06]
[1617326757327,1.16653815,58749.0,58748.0,7.7e-06]
[1617326757528,0.97598442,58749.0,58748.0,0.01973772]
[1617326757927,0.97598442,58749.0,58748.0,7.7e-06]
[1617326758349,0.97598442,58749.0,58748.0,0.06216369]
[1617326758551,0.97598442,58749.0,58748.0,7.7e-06]
[1617326758749,0.53669442,58749.0,58748.0,7.7e-06]
[1617326759570,0.53669442,58749.0,58748.0,0.01974779]
[1617326759768,0.53669442,58749.0,58748.0,7.7e-06]
[1617326760997,0.57669442,58749.0,58748.0,7.7e-06]
[1617326761398,0.72689789,58749.0,58748.0,7.7e-06]
[1617326761600,0.72689789,58749.0,58748.0,0.0197853]
[1617326761798,1.77689789,58749.0,58748.0,0.0197853]
[1617326761998,1.77689789,58749.0,58748.0,7.7e-06]
[1617326762198,1.62669442,58749.0,58748.0,7.7e-06]
[1617326762800,0.57669442,58749.0,58748.0,7.7e-06]
[1617326763606,0.57669442,58749.0,58748.0,0.00198293]
[1617326763805,1.26669442,58749.0,58748.0,0.00198293]
[1617326764004,0.57669442,58749.0,58748.0,0.00198293]
[1617326765006,0.57669442,58749.0,58748.0,7.7e-06]
[1617326766029,0.53669442,58749.0,58748.0,7.7e-06]
[1617326768431,0.57669442,58749.0,58748.0,7.7e-06]
[1617326769051,0.57669442,58749.0,58748.0,0.00198284]
[1617326769858,0.57645746,58749.0,58748.0,7.7e-06]
[1617326770455,0.53645746,58749.0,58748.0,7.7e-06]
[1617326771054,0.58659546,58749.0,58748.0,7.7e-06]
[1617326772898,0.54659546,58749.0,58748.0,7.7e-06]
[1617326774120,0.58659546,58749.0,58748.0,7.7e-06]
[1617326775604,0.58659546,58749.0,58748.0,0.00270877]
[1617326781064,2.0,58748.0,58731.0,0.23239834]
[1617326781265,2.00324486,58748.0,58736.0,0.004]
[1617326781462,0.002,58745.0,58736.0,0.0042]
[1617326781692,0.00220762,58745.0,58741.0,0.255278]
[1617326781886,0.1,58744.0,58736.0,0.0042]
[1617326782088,0.00220762,58745.0,58736.0,0.0042]
[1617326782287,0.00020762,58744.0,58736.0,0.0042]
[1617326782489,0.1,58743.0,58732.0,0.09869808]
[1617326782689,0.159,58740.0,58732.0,0.09869808]
[1617326782891,0.002,58736.0,58724.0,0.17]
[1617326783090,0.00020762,58735.0,58724.0,1.16016125]
[1617326783289,0.00020762,58735.0,58725.0,0.649587]
[1617326783487,0.00020762,58734.0,58725.0,0.649587]
[1617326783893,0.00020762,58734.0,58726.0,0.185]
[1617326784090,0.00020762,58734.0,58727.0,0.389587]
[1617326784311,0.25556462,58734.0,58727.0,0.389587]
[1617326784508,0.00020762,58734.0,58727.0,0.389587]
[1617326784707,0.00020762,58734.0,58723.0,0.004]
[1617326784909,0.002,58731.0,58725.0,0.389587]
[1617326785111,0.33372762,58731.0,58725.0,0.579587]
[1617326785507,0.33172762,58731.0,58725.0,0.24]
[1617326785708,0.33172762,58731.0,58723.0,0.004]
[1617326785909,0.33172762,58731.0,58723.0,0.99416125]
[1617326786109,0.002,58730.0,58724.0,1.57474825]
[1617326786309,0.00220762,58730.0,58724.0,0.584587]
[1617326786510,0.00220762,58730.0,58725.0,0.175]
[1617326786710,0.00220762,58730.0,58726.0,0.389587]
[1617326786930,0.00020762,58730.0,58726.0,0.389587]
[1617326787129,0.00020762,58730.0,58729.0,0.389587]
[1617326787927,0.00020762,58730.0,58729.0,0.439587]
[1617326788529,0.00020762,58730.0,58729.0,2.82474825]
[1617326790830,0.00020762,58730.0,58729.0,1.834587]
[1617326791429,0.00020762,58730.0,58729.0,3.51474825]
[1617326791629,0.00020762,58730.0,58729.0,2.82474825]
[1617326791829,0.00020762,58730.0,58729.0,1.834587]
[1617326792030,0.00020762,58730.0,58729.0,3.07474825]
[1617326792651,0.00020762,58730.0,58729.0,3.15043825]
[1617326793048,0.00020762,58730.0,58729.0,2.160277]
[1617326793449,0.00020762,58730.0,58729.0,1.910277]
[1617326794049,0.00020762,58730.0,58729.0,3.05527825]
[1617326794249,0.00020762,58730.0,58729.0,3.30527825]
[1617326795282,0.00020762,58730.0,58729.0,3.86527825]
[1617326795686,0.00020762,58730.0,58729.0,4.10527825]
[1617326796284,0.00020762,58730.0,58729.0,4.43527825]
[1617326796485,0.00020762,58730.0,58729.0,4.19527825]
[1617326796684,0.00020762,58730.0,58729.0,4.69527825]
[1617326798095,0.00020762,58730.0,58729.0,4.72527825]
[1617326798695,0.00020762,58730.0,58729.0,5.06560625]
[1617326798898,0.00020762,58730.0,58729.0,4.73560625]
[1617326800922,0.00020762,58730.0,58729.0,4.73819732]
[1617326801122,0.00020762,58730.0,58729.0,3.74803607]
[1617326801725,0.00020762,58730.0,58729.0,4.93062648]
[1617326802522,0.00020762,58730.0,58729.0,4.92562648]
[1617326802758,0.00020762,58730.0,58729.0,3.37546523]
[1617326802955,0.00020762,58730.0,58729.0,3.18303607]
[1617326803356,0.00020762,58730.0,58729.0,3.70303607]
[1617326803556,0.00020762,58730.0,58729.0,3.89575982]
[1617326803758,0.00020762,58730.0,58729.0,3.86575982]
[1617326803960,0.00020762,58730.0,58729.0,3.15303607]
[1617326805222,0.00020762,58730.0,58729.0,3.18303607]
[1617326805425,0.00020762,58730.0,58729.0,3.15303607]
[1617326806622,0.00020762,58730.0,58729.0,3.31303607]
[1617326808826,0.00020762,58730.0,58729.0,2.81303607]
[1617326809625,0.00020762,58730.0,58729.0,3.80319732]
[1617326809828,0.00020762,58730.0,58729.0,4.22078732]
[1617326810228,0.00020762,58730.0,58729.0,4.25078732]
[1617326811241,0.00020762,58730.0,58729.0,4.75078732]
[1617326812442,0.00020762,58730.0,58729.0,3.76062607]
[1617326814250,0.00020762,58730.0,58729.0,4.34062607]
[1617326815652,0.00020762,58730.0,58729.0,5.33078732]
[1617326815882,0.00020762,58730.0,58729.0,4.34062607]
[1617326818281,0.00020762,58730.0,58729.0,3.76062607]
[1617326819108,0.00020762,58730.0,58729.0,4.15062607]
[1617326819307,0.00020762,58730.0,58729.0,3.76062607]
[1617326819972,0.00020762,58730.0,58729.0,3.73062607]
[1617326820168,0.00020762,58730.0,58729.0,1.91803607]
[1617326820371,0.00020762,58730.0,58729.0,1.68750607]
[1617326820572,0.00020762,58730.0,58729.0,1.18717807]
[1617326821175,0.00020762,58730.0,58729.0,0.68717807]
[1617326822970,0.00020762,58730.0,58729.0,1.19717807]
[1617326823568,0.00020762,58730.0,58729.0,1.24717807]
[1617326823968,0.00020762,58730.0,58729.0,2.38717807]
[1617326824369,0.00020762,58730.0,58729.0,2.63717807]
[1617326824568,0.00020762,58730.0,58729.0,2.74429084]
[1617326825570,0.00020762,58730.0,58729.0,3.24429084]
[1617326826577,0.00020762,58730.0,58729.0,3.24561873]
[1617326826974,0.00020762,58730.0,58729.0,3.61970873]
[1617326827377,0.00020762,58730.0,58729.0,3.97718454]
[1617326827978,0.00020762,58730.0,58729.0,5.30734579]
[1617326828384,0.54638784,58749.0,58748.0,0.12909088]
[1617326828580,0.54638784,58749.0,58748.0,3.67569788]
[1617326829000,0.54638784,58749.0,58748.0,3.87580294]
[1617326829195,0.54638784,58749.0,58748.0,4.28380294]
[1617326829402,0.54584294,58749.0,58748.0,4.95880294]
[1617326829799,0.54584294,58749.0,58748.0,5.21400394]
[1617326829998,0.54584294,58749.0,58748.0,6.39402368]
[1617326830197,0.48175167,58749.0,58748.0,6.39402368]
[1617326830396,0.48175167,58749.0,58748.0,6.70702368]
[1617326830595,0.2,58750.0,58749.0,3.66974825]
[1617326830797,0.2,58750.0,58749.0,4.054988]
[1617326830997,0.2,58750.0,58749.0,4.77544505]
[1617326831201,0.001,58771.0,58770.0,1.67426831]
[1617326831399,0.001,58771.0,58770.0,3.55626719]
[1617326831666,0.001,58771.0,58770.0,4.30353046]
[1617326831861,0.281,58771.0,58770.0,4.30353046]
[1617326832567,0.001,58771.0,58770.0,4.30353046]
[1617326832763,0.001,58771.0,58770.0,4.5022788]
[1617326833360,0.001,58771.0,58770.0,4.6632788]
[1617326833762,0.001,58771.0,58770.0,4.6932788]
[1617326835601,0.0006,58772.0,58771.0,1.99]
[1617326835800,0.0006,58772.0,58771.0,2.409587]
[1617326835999,0.0006,58772.0,58771.0,2.79061648]
[1617326836199,0.0006,58772.0,58771.0,2.83061648]
[1617326838009,0.0014,58774.0,58771.0,2.83061648]
[1617326838010,0.0006,58776.0,58772.0,1.21190865]
[1617326838210,0.0006,58776.0,58775.0,2.389587]
[1617326838408,0.0006,58776.0,58775.0,2.78549565]
[1617326838612,0.0006,58776.0,58775.0,4.22639891]
[1617326839010,0.0006,58776.0,58775.0,4.02549565]
[1617326839409,0.0006,58776.0,58775.0,4.22901127]
[1617326841411,0.0006,58776.0,58775.0,3.84710262]
[1617326842232,0.0006,58776.0,58775.0,4.22901127]
[1617326842828,0.0006,58776.0,58775.0,4.23299063]
[1617326844028,0.0006,58776.0,58775.0,4.21899063]
[1617326844429,0.0006,58776.0,58775.0,4.23199063]
[1617326844631,0.0006,58776.0,58775.0,3.85008198]
[1617326844862,0.0006,58776.0,58775.0,4.23199063]
[1617326845258,0.0006,58776.0,58775.0,4.21899063]
[1617326847057,0.0006,58776.0,58775.0,2.28899063]
[1617326847256,0.0006,58776.0,58775.0,1.43356636]
[1617326847492,0.0006,58776.0,58775.0,0.43356636]
[1617326847690,0.0006,58776.0,58775.0,1.45356636]
[1617326848289,0.0006,58777.0,58775.0,0.38734336]
[1617326848489,0.0006,58777.0,58776.0,0.389587]
[1617326848690,0.0006,58777.0,58776.0,1.894587]
[1617326850929,0.0006,58777.0,58776.0,1.924587]
[1617326851530,0.0006,58777.0,58776.0,0.614587]
[1617326851729,0.71437798,58777.0,58776.0,0.614587]
[1617326851931,0.71437798,58777.0,58776.0,0.584587]
[1617326852739,0.71437798,58777.0,58776.0,1.804587]
[1617326853136,0.71437798,58777.0,58776.0,0.584587]
[1617326853337,0.71437798,58777.0,58776.0,0.614587]
[1617326853552,0.71497798,58777.0,58776.0,0.614587]
[1617326855770,0.71477599,58777.0,58776.0,0.614587]
[1617326856172,0.71477599,58777.0,58776.0,0.584587]
[1617326857573,0.71477599,58777.0,58776.0,1.004587]
[1617326857993,0.71477599,58777.0,58776.0,0.584587]
[1617326858591,0.71477599,58777.0,58776.0,0.614587]
[1617326858991,0.71477599,58777.0,58776.0,0.73237869]
[1617326859595,0.71477599,58777.0,58776.0,2.30237869]
[1617326861018,0.71477599,58777.0,58776.0,2.80237869]